[Event "Early-Titled-Tuesday-Blitz-October-03-2023"]
[Site "Chess.com"]
[Date "2023.10.03"]
[Round "5"]
[White "LeoWin2012"]
[Black "MaxLeto"]
[Result "1-0"]
[WhiteElo "2309"]
[BlackElo "2472"]
[TimeControl "180+1"]
[EndTime "8:56:18 PDT"]
[Termination "LeoWin2012 won by resignation"]

1. e4 {[%clk 0:02:57.7]} 1... c5 {[%clk 0:03:00.2]} 2. Nf3 {[%clk 0:02:56.2]}
2... d6 {[%clk 0:03:00.8]} 3. d4 {[%clk 0:02:55]} 3... cxd4 {[%clk 0:03:01.7]}
4. Nxd4 {[%clk 0:02:54.9]} 4... Nf6 {[%clk 0:03:02]} 5. Nc3 {[%clk 0:02:54.8]}
5... a6 {[%clk 0:03:02.7]} 6. Be3 {[%clk 0:02:53]} 6... Ng4 {[%clk 0:03:03]} 7.
Bg5 {[%clk 0:02:44.3]} 7... h6 {[%clk 0:03:03.4]} 8. Bh4 {[%clk 0:02:43.9]} 8...
g5 {[%clk 0:03:03.9]} 9. Bg3 {[%clk 0:02:43.7]} 9... Bg7 {[%clk 0:03:04.5]} 10.
f3 {[%clk 0:02:43.4]} 10... Ne5 {[%clk 0:03:04.5]} 11. Be2 {[%clk 0:02:40.4]}
11... Nbc6 {[%clk 0:03:04.8]} 12. Nxc6 {[%clk 0:02:35.3]} 12... bxc6 {[%clk
0:03:05.7]} 13. Qd2 {[%clk 0:02:33.7]} 13... Qb6 {[%clk 0:03:06.1]} 14. O-O-O
{[%clk 0:02:27.8]} 14... Rb8 {[%clk 0:03:06.3]} 15. Na4 {[%clk 0:02:22.5]} 15...
Qb7 {[%clk 0:02:57.2]} 16. c3 {[%clk 0:02:08.3]} 16... Be6 {[%clk 0:02:49.2]}
17. b3 {[%clk 0:02:02.3]} 17... O-O {[%clk 0:01:52]} 18. h4 {[%clk 0:01:58.6]}
18... Bxb3 {[%clk 0:01:50.8]} 19. axb3 {[%clk 0:01:50.7]} 19... Qxb3 {[%clk
0:01:51.7]} 20. Qc2 {[%clk 0:01:50.4]} 20... gxh4 {[%clk 0:01:10.8]} 21. Bxh4
{[%clk 0:01:26.2]} 21... Ng6 {[%clk 0:01:10.8]} 22. Qxb3 {[%clk 0:01:21.4]}
22... Rxb3 {[%clk 0:01:10.4]} 23. Kc2 {[%clk 0:01:21.5]} 23... Rfb8 {[%clk
0:01:05.7]} 24. Bg3 {[%clk 0:01:03.8]} 24... h5 {[%clk 0:00:21.3]} 25. Rb1
{[%clk 0:00:56.3]} 25... Rxb1 {[%clk 0:00:13.2]} 26. Rxb1 {[%clk 0:00:57.2]}
26... Rxb1 {[%clk 0:00:07.8]} 27. Kxb1 {[%clk 0:00:58.1]} 27... h4 {[%clk
0:00:08.2]} 28. Bh2 {[%clk 0:00:56.2]} 28... a5 {[%clk 0:00:07.9]} 29. Kc2
{[%clk 0:00:52.3]} 29... Kf8 {[%clk 0:00:07.4]} 30. Nb6 {[%clk 0:00:51.2]} 30...
Ke8 {[%clk 0:00:07.3]} 31. Nc4 {[%clk 0:00:51.3]} 31... a4 {[%clk 0:00:06.7]}
32. Bd1 {[%clk 0:00:45.2]} 32... d5 {[%clk 0:00:03]} 33. exd5 {[%clk 0:00:43]}
33... cxd5 {[%clk 0:00:03.9]} 34. Nb6 {[%clk 0:00:42]} 34... e6 {[%clk
0:00:04.8]} 35. Nxa4 {[%clk 0:00:40.5]} 35... Kd7 {[%clk 0:00:04.7]} 36. Nc5+
{[%clk 0:00:39.7]} 36... Kc6 {[%clk 0:00:04.8]} 37. Nd3 {[%clk 0:00:40.6]} 37...
Kb5 {[%clk 0:00:04.7]} 38. Kb3 {[%clk 0:00:39.5]} 38... Bh6 {[%clk 0:00:04.5]}
39. Be2 {[%clk 0:00:38.6]} 39... Kc6 {[%clk 0:00:03.7]} 40. Ne5+ {[%clk
0:00:36.4]} 40... Nxe5 {[%clk 0:00:03.4]} 41. Bxe5 {[%clk 0:00:37.3]} 41... Be3
{[%clk 0:00:03.7]} 42. c4 {[%clk 0:00:35.1]} 42... d4 {[%clk 0:00:03.9]} 43. Bf6
{[%clk 0:00:28.7]} 43... Kd6 {[%clk 0:00:04]} 44. Bxh4 {[%clk 0:00:27.7]} 44...
e5 {[%clk 0:00:04.6]} 45. Bd3 {[%clk 0:00:26.8]} 45... Ke6 {[%clk 0:00:04.6]}
46. g4 {[%clk 0:00:25.4]} 46... f6 {[%clk 0:00:04.3]} 47. c5 {[%clk 0:00:23.6]}
47... Bf4 {[%clk 0:00:02.8]} 48. Kc4 {[%clk 0:00:22.9]} 48... Bh6 {[%clk
0:00:02.4]} 49. Kb5 {[%clk 0:00:23.1]} 49... Bf8 {[%clk 0:00:02]} 50. c6 {[%clk
0:00:23.3]} 50... Bd6 {[%clk 0:00:02.3]} 51. Kb6 {[%clk 0:00:23.6]} 51... Bb4
{[%clk 0:00:01.2]} 1-0

[Event "Early-Titled-Tuesday-Blitz-October-03-2023"]
[Site "Chess.com"]
[Date "2023.10.03"]
[Round "5"]
[White "AbdulovOrkhan"]
[Black "Rodalquilar"]
[Result "1-0"]
[WhiteElo "2568"]
[BlackElo "2718"]
[TimeControl "180+1"]
[EndTime "8:56:19 PDT"]
[Termination "AbdulovOrkhan won on time"]

1. e4 {[%clk 0:03:00.9]} 1... d5 {[%clk 0:02:09.8]} 2. exd5 {[%clk 0:02:59.8]}
2... Qxd5 {[%clk 0:02:10.7]} 3. Nc3 {[%clk 0:02:59.8]} 3... Qa5 {[%clk
0:02:10.9]} 4. d4 {[%clk 0:02:59.7]} 4... Nf6 {[%clk 0:02:11.3]} 5. Nf3 {[%clk
0:02:59.2]} 5... Bf5 {[%clk 0:02:11.6]} 6. Bd2 {[%clk 0:02:58.3]} 6... e6 {[%clk
0:02:11.6]} 7. Nb5 {[%clk 0:02:56]} 7... Qb6 {[%clk 0:02:05.6]} 8. c4 {[%clk
0:02:55.3]} 8... c6 {[%clk 0:02:03.4]} 9. c5 {[%clk 0:02:52.1]} 9... Qd8 {[%clk
0:02:02.6]} 10. Na3 {[%clk 0:02:49.4]} 10... Be7 {[%clk 0:01:49.6]} 11. Be2
{[%clk 0:02:47.9]} 11... O-O {[%clk 0:01:49.4]} 12. O-O {[%clk 0:02:47.7]} 12...
b6 {[%clk 0:01:49.6]} 13. b4 {[%clk 0:02:41.1]} 13... a5 {[%clk 0:01:29.7]} 14.
Nc4 {[%clk 0:02:34.1]} 14... Nd5 {[%clk 0:01:28.9]} 15. a3 {[%clk 0:02:17.7]}
15... axb4 {[%clk 0:01:29.1]} 16. axb4 {[%clk 0:02:18.6]} 16... Rxa1 {[%clk
0:01:29.4]} 17. Qxa1 {[%clk 0:02:18.4]} 17... b5 {[%clk 0:01:29.9]} 18. Nce5
{[%clk 0:02:08.6]} 18... Qc7 {[%clk 0:01:22.1]} 19. Qa3 {[%clk 0:01:53.7]} 19...
f6 {[%clk 0:01:10.8]} 20. Nd3 {[%clk 0:01:53.1]} 20... Nd7 {[%clk 0:01:07.1]}
21. Ra1 {[%clk 0:01:51.8]} 21... Rb8 {[%clk 0:01:02.4]} 22. Qa7 {[%clk
0:01:49.3]} 22... Rb7 {[%clk 0:01:02.7]} 23. Qa8+ {[%clk 0:01:49.1]} 23... Rb8
{[%clk 0:01:03.3]} 24. Qa5 {[%clk 0:01:47.6]} 24... Qb7 {[%clk 0:00:58.1]} 25.
Nf4 {[%clk 0:01:44.3]} 25... Nc7 {[%clk 0:00:55.6]} 26. Qa7 {[%clk 0:01:41.6]}
26... Qc8 {[%clk 0:00:51.6]} 27. Qa3 {[%clk 0:01:39]} 27... g5 {[%clk
0:00:47.4]} 28. Nd3 {[%clk 0:01:33.9]} 28... Ra8 {[%clk 0:00:47.2]} 29. Qb2
{[%clk 0:01:33.7]} 29... Ra6 {[%clk 0:00:43.4]} 30. h4 {[%clk 0:01:17.8]} 30...
h6 {[%clk 0:00:41.2]} 31. hxg5 {[%clk 0:01:15.4]} 31... hxg5 {[%clk 0:00:42.1]}
32. Nc1 {[%clk 0:01:07.9]} 32... Qa8 {[%clk 0:00:33.7]} 33. Rxa6 {[%clk
0:01:07.6]} 33... Qxa6 {[%clk 0:00:34.6]} 34. Nb3 {[%clk 0:01:07.8]} 34... Nd5
{[%clk 0:00:33]} 35. Na5 {[%clk 0:01:06]} 35... Bd8 {[%clk 0:00:33.3]} 36. Ne1
{[%clk 0:01:04.5]} 36... Kf7 {[%clk 0:00:26.1]} 37. Bd3 {[%clk 0:01:02.3]} 37...
Bc7 {[%clk 0:00:13.9]} 38. Bxf5 {[%clk 0:01:00]} 38... exf5 {[%clk 0:00:14.8]}
39. Qc2 {[%clk 0:00:58.1]} 39... Ne7 {[%clk 0:00:12.6]} 40. Qb3+ {[%clk
0:00:57.1]} 40... Nd5 {[%clk 0:00:10.2]} 41. Qh3 {[%clk 0:00:56.4]} 41... Ke6
{[%clk 0:00:04.8]} 42. Qh8 {[%clk 0:00:53.5]} 42... Bxa5 {[%clk 0:00:05.1]} 43.
bxa5 {[%clk 0:00:53.4]} 43... b4 {[%clk 0:00:06]} 44. Qe8+ {[%clk 0:00:46.6]}
44... Ne7 {[%clk 0:00:06]} 45. Bxb4 {[%clk 0:00:46.6]} 45... Qb5 {[%clk
0:00:05.3]} 46. Bc3 {[%clk 0:00:37.5]} 46... Qc4 {[%clk 0:00:05.7]} 47. Bd2
{[%clk 0:00:32.4]} 47... Qe2 {[%clk 0:00:05.9]} 48. Nf3 {[%clk 0:00:27.6]} 48...
g4 {[%clk 0:00:05.7]} 49. d5+ {[%clk 0:00:28.2]} 49... cxd5 {[%clk 0:00:05]} 50.
Nd4+ {[%clk 0:00:27.8]} 1-0

[Event "Early-Titled-Tuesday-Blitz-October-03-2023"]
[Site "Chess.com"]
[Date "2023.10.03"]
[Round "5"]
[White "Roedor"]
[Black "inegrepus"]
[Result "1/2-1/2"]
[WhiteElo "2387"]
[BlackElo "2185"]
[TimeControl "180+1"]
[EndTime "8:56:19 PDT"]
[Termination "Game drawn by repetition"]

1. Nf3 {[%clk 0:03:00.9]} 1... Nf6 {[%clk 0:02:56.9]} 2. c4 {[%clk 0:03:00.9]}
2... g6 {[%clk 0:02:56.8]} 3. g3 {[%clk 0:03:01]} 3... Bg7 {[%clk 0:02:57.3]} 4.
Bg2 {[%clk 0:03:01.7]} 4... O-O {[%clk 0:02:57.5]} 5. O-O {[%clk 0:03:02.4]}
5... d6 {[%clk 0:02:56.3]} 6. Nc3 {[%clk 0:03:03]} 6... c5 {[%clk 0:02:55.9]} 7.
d4 {[%clk 0:03:02.7]} 7... Nc6 {[%clk 0:02:53.3]} 8. dxc5 {[%clk 0:03:02.5]}
8... dxc5 {[%clk 0:02:52.7]} 9. Be3 {[%clk 0:03:03]} 9... Be6 {[%clk 0:02:52.6]}
10. Bxc5 {[%clk 0:03:01.3]} 10... Qa5 {[%clk 0:02:46.7]} 11. Be3 {[%clk
0:03:00.2]} 11... Bxc4 {[%clk 0:02:46.7]} 12. Qc2 {[%clk 0:02:49]} 12... Rac8
{[%clk 0:02:40.4]} 13. Rac1 {[%clk 0:02:46.1]} 13... Nb4 {[%clk 0:02:27.7]} 14.
Qb1 {[%clk 0:02:46.1]} 14... Rfd8 {[%clk 0:02:23]} 15. a3 {[%clk 0:02:44.2]}
15... Nbd5 {[%clk 0:02:22.8]} 16. Nxd5 {[%clk 0:02:43.2]} 16... Nxd5 {[%clk
0:02:23.7]} 17. Bd2 {[%clk 0:02:42.1]} 17... Qa6 {[%clk 0:02:18.1]} 18. e4
{[%clk 0:02:34.7]} 18... Nf6 {[%clk 0:02:06.7]} 19. Rfe1 {[%clk 0:02:27]} 19...
Bd3 {[%clk 0:02:02.4]} 20. Rxc8 {[%clk 0:02:11.2]} 20... Rxc8 {[%clk 0:01:55.5]}
21. Bf1 {[%clk 0:01:55]} 21... Bxb1 {[%clk 0:01:48.3]} 22. Bxa6 {[%clk
0:01:54.5]} 22... bxa6 {[%clk 0:01:49.2]} 23. Rxb1 {[%clk 0:01:54.7]} 23... Nxe4
{[%clk 0:01:48.8]} 24. Be3 {[%clk 0:01:52.3]} 24... Rc2 {[%clk 0:01:43.5]} 25.
b3 {[%clk 0:01:43.3]} 25... Nc3 {[%clk 0:01:39.8]} 26. Re1 {[%clk 0:01:42.8]}
26... Nd5 {[%clk 0:01:23.2]} 27. Bxa7 {[%clk 0:01:41.6]} 27... Rc3 {[%clk
0:01:23.3]} 28. Rd1 {[%clk 0:01:27.6]} 28... e6 {[%clk 0:01:21.6]} 29. Kg2
{[%clk 0:01:25.1]} 29... Rxb3 {[%clk 0:01:20.6]} 30. Bc5 {[%clk 0:01:23.5]}
30... Bf8 {[%clk 0:01:15.4]} 31. Rc1 {[%clk 0:01:15.3]} 31... Bxc5 {[%clk
0:01:13.3]} 32. Rxc5 {[%clk 0:01:16.2]} 32... Rxa3 {[%clk 0:01:13.1]} 33. Rc8+
{[%clk 0:01:11.9]} 33... Kg7 {[%clk 0:01:13.1]} 34. Ra8 {[%clk 0:01:12.4]} 34...
a5 {[%clk 0:01:11.1]} 35. Ra7 {[%clk 0:01:12.4]} 35... Kf6 {[%clk 0:01:04.4]}
36. h4 {[%clk 0:01:12.3]} 36... h6 {[%clk 0:01:03.2]} 37. Nd2 {[%clk 0:01:04.7]}
37... Ra2 {[%clk 0:00:59.5]} 38. Ne4+ {[%clk 0:01:03.9]} 38... Kg7 {[%clk
0:00:58.8]} 39. Nd6 {[%clk 0:01:03.7]} 39... a4 {[%clk 0:00:53.1]} 40. Rxf7+
{[%clk 0:01:03.2]} 40... Kg8 {[%clk 0:00:53.4]} 41. Ra7 {[%clk 0:00:59.1]} 41...
Ra1 {[%clk 0:00:41.2]} 42. Nc4 {[%clk 0:00:56.1]} 42... Nc3 {[%clk 0:00:38.8]}
43. Kf3 {[%clk 0:00:50.1]} 43... a3 {[%clk 0:00:39]} 44. Rxa3 {[%clk 0:00:47.9]}
44... Rxa3 {[%clk 0:00:34.6]} 45. Nxa3 {[%clk 0:00:48.8]} 45... Kf7 {[%clk
0:00:34.5]} 46. Nc4 {[%clk 0:00:48.2]} 46... Kf6 {[%clk 0:00:34.3]} 47. g4
{[%clk 0:00:47.7]} 47... Nd5 {[%clk 0:00:34.1]} 48. Ne3 {[%clk 0:00:45.1]} 48...
Nxe3 {[%clk 0:00:33.9]} 49. Kxe3 {[%clk 0:00:43.7]} 49... Ke5 {[%clk 0:00:34]}
50. f4+ {[%clk 0:00:43.4]} 50... Kd5 {[%clk 0:00:34.2]} 51. Kd3 {[%clk 0:00:41]}
51... e5 {[%clk 0:00:27.8]} 52. Ke3 {[%clk 0:00:39.2]} 52... exf4+ {[%clk
0:00:26.7]} 53. Kxf4 {[%clk 0:00:40.1]} 53... Ke6 {[%clk 0:00:26.5]} 54. Ke4
{[%clk 0:00:25.7]} 54... Kd6 {[%clk 0:00:24.3]} 55. Kf4 {[%clk 0:00:17.2]} 55...
Ke6 {[%clk 0:00:23.8]} 56. Ke4 {[%clk 0:00:17.1]} 56... Kd6 {[%clk 0:00:24]} 57.
Kf4 {[%clk 0:00:17.4]} 57... Ke6 {[%clk 0:00:24.3]} 1/2-1/2

[Event "Early-Titled-Tuesday-Blitz-October-03-2023"]
[Site "Chess.com"]
[Date "2023.10.03"]
[Round "5"]
[White "LuisFSiles"]
[Black "VOneChess"]
[Result "0-1"]
[WhiteElo "2268"]
[BlackElo "2226"]
[TimeControl "180+1"]
[EndTime "8:56:21 PDT"]
[Termination "VOneChess won on time"]

1. d4 {[%clk 0:03:00.9]} 1... Nf6 {[%clk 0:02:59.2]} 2. c4 {[%clk 0:03:00.3]}
2... e6 {[%clk 0:02:58.5]} 3. Nf3 {[%clk 0:02:59.4]} 3... Bb4+ {[%clk
0:02:57.7]} 4. Nc3 {[%clk 0:02:57.6]} 4... b6 {[%clk 0:02:56.1]} 5. e3 {[%clk
0:02:56.4]} 5... Bb7 {[%clk 0:02:55.7]} 6. Bd3 {[%clk 0:02:55.6]} 6... Ne4
{[%clk 0:02:54.4]} 7. Bd2 {[%clk 0:02:46.5]} 7... Bxc3 {[%clk 0:02:53.4]} 8.
Bxc3 {[%clk 0:02:32.2]} 8... O-O {[%clk 0:02:53.3]} 9. Bb4 {[%clk 0:02:27.6]}
9... d6 {[%clk 0:02:50.1]} 10. O-O {[%clk 0:02:25.8]} 10... Nd7 {[%clk
0:02:49.2]} 11. Qc2 {[%clk 0:02:11.2]} 11... f5 {[%clk 0:02:48.5]} 12. Nd2
{[%clk 0:02:06]} 12... Ndf6 {[%clk 0:02:25.3]} 13. f3 {[%clk 0:01:59.6]} 13...
Nxd2 {[%clk 0:02:24.3]} 14. Bxd2 {[%clk 0:02:00.5]} 14... Qe8 {[%clk 0:02:22.7]}
15. e4 {[%clk 0:01:52.4]} 15... fxe4 {[%clk 0:02:21.1]} 16. fxe4 {[%clk
0:01:52]} 16... Qg6 {[%clk 0:02:14]} 17. Rae1 {[%clk 0:01:46.5]} 17... Rae8
{[%clk 0:02:08.4]} 18. Rf3 {[%clk 0:01:36.1]} 18... e5 {[%clk 0:01:47]} 19. d5
{[%clk 0:01:26.6]} 19... Bc8 {[%clk 0:01:42.1]} 20. Ref1 {[%clk 0:00:57.9]}
20... Bg4 {[%clk 0:01:16.5]} 21. R3f2 {[%clk 0:00:52.7]} 21... Rf7 {[%clk
0:00:50.6]} 22. b4 {[%clk 0:00:51.7]} 22... Ref8 {[%clk 0:00:44.3]} 23. c5
{[%clk 0:00:52]} 23... bxc5 {[%clk 0:00:44.6]} 24. bxc5 {[%clk 0:00:52.1]} 24...
Bd7 {[%clk 0:00:25.9]} 25. cxd6 {[%clk 0:00:41.8]} 25... cxd6 {[%clk 0:00:25.8]}
26. Bb4 {[%clk 0:00:41.8]} 26... Nh5 {[%clk 0:00:10.1]} 27. Rxf7 {[%clk
0:00:40.1]} 27... Rxf7 {[%clk 0:00:10.2]} 28. Rxf7 {[%clk 0:00:40.3]} 28... Qxf7
{[%clk 0:00:10]} 29. Bxd6 {[%clk 0:00:37.8]} 29... Qf6 {[%clk 0:00:04]} 30. Qc7
{[%clk 0:00:29.3]} 30... Be8 {[%clk 0:00:02.5]} 31. Bxe5 {[%clk 0:00:28.4]}
31... Qg5 {[%clk 0:00:03]} 32. Bd4 {[%clk 0:00:11.9]} 32... Qd2 {[%clk
0:00:02.9]} 33. Bf1 {[%clk 0:00:11.3]} 33... Qxd4+ {[%clk 0:00:02.9]} 34. Kh1
{[%clk 0:00:08.8]} 34... Qf2 {[%clk 0:00:02.5]} 35. Qc4 {[%clk 0:00:07.8]} 35...
Kh8 {[%clk 0:00:02.3]} 36. d6 {[%clk 0:00:07.6]} 36... Nf4 {[%clk 0:00:02.2]}
37. d7 {[%clk 0:00:05.7]} 37... Bxd7 {[%clk 0:00:02.3]} 38. e5 {[%clk
0:00:04.1]} 38... Be6 {[%clk 0:00:02.2]} 39. Qb5 {[%clk 0:00:02.3]} 39... h6
{[%clk 0:00:01.9]} 0-1

[Event "Early-Titled-Tuesday-Blitz-October-03-2023"]
[Site "Chess.com"]
[Date "2023.10.03"]
[Round "5"]
[White "venturov"]
[Black "ChessQueen"]
[Result "0-1"]
[WhiteElo "2486"]
[BlackElo "2727"]
[TimeControl "180+1"]
[EndTime "8:56:24 PDT"]
[Termination "ChessQueen won by checkmate"]

1. e4 {[%clk 0:02:56.8]} 1... c6 {[%clk 0:02:59.8]} 2. d4 {[%clk 0:02:55.1]}
2... d5 {[%clk 0:02:58.1]} 3. e5 {[%clk 0:02:55.4]} 3... c5 {[%clk 0:02:58.3]}
4. dxc5 {[%clk 0:02:55.8]} 4... e6 {[%clk 0:02:58.5]} 5. a3 {[%clk 0:02:54.3]}
5... Bxc5 {[%clk 0:02:57.8]} 6. Qg4 {[%clk 0:02:51.4]} 6... Ne7 {[%clk 0:02:50]}
7. Nf3 {[%clk 0:02:50.1]} 7... Ng6 {[%clk 0:02:46.7]} 8. b4 {[%clk 0:02:43.1]}
8... Be7 {[%clk 0:02:42.1]} 9. Bd3 {[%clk 0:02:42.3]} 9... a5 {[%clk 0:02:41.8]}
10. b5 {[%clk 0:02:40.8]} 10... Nd7 {[%clk 0:02:42]} 11. O-O {[%clk 0:02:38.5]}
11... Ndxe5 {[%clk 0:02:36.5]} 12. Nxe5 {[%clk 0:02:36.1]} 12... Nxe5 {[%clk
0:02:37.4]} 13. Qg3 {[%clk 0:02:34.2]} 13... Nxd3 {[%clk 0:02:33]} 14. cxd3
{[%clk 0:02:29]} 14... Bf6 {[%clk 0:02:32.5]} 15. Ra2 {[%clk 0:02:27.9]} 15...
a4 {[%clk 0:02:29.2]} 16. Bf4 {[%clk 0:02:19.6]} 16... O-O {[%clk 0:02:24.8]}
17. Nd2 {[%clk 0:02:15.3]} 17... Re8 {[%clk 0:02:05.5]} 18. Nf3 {[%clk
0:02:12.3]} 18... e5 {[%clk 0:01:24.6]} 19. Bxe5 {[%clk 0:01:50.2]} 19... Qb6
{[%clk 0:01:16.1]} 20. Rb1 {[%clk 0:01:42.2]} 20... Bf5 {[%clk 0:01:10.5]} 21.
Rd2 {[%clk 0:01:32.3]} 21... Rac8 {[%clk 0:01:08.3]} 22. Qf4 {[%clk 0:01:21.3]}
22... Qxb5 {[%clk 0:00:52]} 23. Rdd1 {[%clk 0:01:00.6]} 23... Qd7 {[%clk
0:00:43]} 24. Bxf6 {[%clk 0:00:59.1]} 24... gxf6 {[%clk 0:00:43.9]} 25. Nd4
{[%clk 0:00:49.3]} 25... Bg6 {[%clk 0:00:38.4]} 26. Qxf6 {[%clk 0:00:49.4]}
26... Qe7 {[%clk 0:00:34.5]} 27. Qf4 {[%clk 0:00:40.6]} 27... Rc3 {[%clk
0:00:31.5]} 28. h4 {[%clk 0:00:38.1]} 28... Qe5 {[%clk 0:00:27.2]} 29. Qg4
{[%clk 0:00:31.4]} 29... h5 {[%clk 0:00:25.4]} 30. Qd7 {[%clk 0:00:19.7]} 30...
Re7 {[%clk 0:00:22]} 31. Qd8+ {[%clk 0:00:19.6]} 31... Kg7 {[%clk 0:00:20.7]}
32. Nf3 {[%clk 0:00:18.1]} 32... Qf6 {[%clk 0:00:21]} 33. Qxd5 {[%clk
0:00:17.1]} 33... Rxa3 {[%clk 0:00:20.6]} 34. Qc5 {[%clk 0:00:15.5]} 34... Rxd3
{[%clk 0:00:18.4]} 35. Rxd3 {[%clk 0:00:13.2]} 35... Bxd3 {[%clk 0:00:19.3]} 36.
Rb6 {[%clk 0:00:13.2]} 36... Re6 {[%clk 0:00:16.7]} 37. Rxb7 {[%clk 0:00:12.5]}
37... Be4 {[%clk 0:00:17]} 38. Ng5 {[%clk 0:00:10.8]} 38... Bxb7 {[%clk
0:00:16]} 39. Nxe6+ {[%clk 0:00:11]} 39... Qxe6 {[%clk 0:00:15.5]} 40. Qg5+
{[%clk 0:00:11.6]} 40... Qg6 {[%clk 0:00:15]} 41. Qe5+ {[%clk 0:00:12]} 41...
Qf6 {[%clk 0:00:15.4]} 42. Qc7 {[%clk 0:00:09.9]} 42... Be4 {[%clk 0:00:14.3]}
43. g4 {[%clk 0:00:08.1]} 43... Qf3 {[%clk 0:00:12.6]} 44. Qe5+ {[%clk
0:00:07.8]} 44... Kf8 {[%clk 0:00:12.9]} 45. Qb8+ {[%clk 0:00:07.4]} 45... Kg7
{[%clk 0:00:13.3]} 46. Qe5+ {[%clk 0:00:07.5]} 46... Kg8 {[%clk 0:00:13.3]} 47.
Qg5+ {[%clk 0:00:07.1]} 47... Kf8 {[%clk 0:00:13.1]} 48. Qd8+ {[%clk 0:00:07.2]}
48... Kg7 {[%clk 0:00:13.7]} 49. Qg5+ {[%clk 0:00:07.8]} 49... Bg6 {[%clk
0:00:14.5]} 50. Qe5+ {[%clk 0:00:05.1]} 50... Qf6 {[%clk 0:00:14.8]} 51. Qa5
{[%clk 0:00:04.7]} 51... Qxh4 {[%clk 0:00:14.8]} 52. gxh5 {[%clk 0:00:04.4]}
52... Qg4+ {[%clk 0:00:15.3]} 53. Kf1 {[%clk 0:00:04.3]} 53... Bd3+ {[%clk
0:00:15.5]} 54. Ke1 {[%clk 0:00:04.8]} 54... Qe2# {[%clk 0:00:15.9]} 0-1

[Event "Early-Titled-Tuesday-Blitz-October-03-2023"]
[Site "Chess.com"]
[Date "2023.10.03"]
[Round "5"]
[White "carloseduar100"]
[Black "Sergey85Rodchenkov"]
[Result "0-1"]
[WhiteElo "2323"]
[BlackElo "2526"]
[TimeControl "180+1"]
[EndTime "8:56:25 PDT"]
[Termination "Sergey85Rodchenkov won by resignation"]

1. e4 {[%clk 0:03:00.1]} 1... c5 {[%clk 0:03:00.1]} 2. Nf3 {[%clk 0:03:00]} 2...
d6 {[%clk 0:02:59.8]} 3. Bc4 {[%clk 0:02:58.9]} 3... Nf6 {[%clk 0:02:58.1]} 4.
Nc3 {[%clk 0:02:57.8]} 4... a6 {[%clk 0:02:52]} 5. a4 {[%clk 0:02:57.4]} 5... g6
{[%clk 0:02:48]} 6. O-O {[%clk 0:02:57.3]} 6... Bg7 {[%clk 0:02:47.6]} 7. Re1
{[%clk 0:02:47.6]} 7... O-O {[%clk 0:02:41.9]} 8. d4 {[%clk 0:02:33.2]} 8...
cxd4 {[%clk 0:02:42.8]} 9. Nxd4 {[%clk 0:02:33.5]} 9... Nbd7 {[%clk 0:02:36]}
10. Kh1 {[%clk 0:02:17.2]} 10... Ne5 {[%clk 0:02:05.7]} 11. Be2 {[%clk 0:02:13]}
11... Neg4 {[%clk 0:02:00.9]} 12. Bxg4 {[%clk 0:02:04]} 12... Nxg4 {[%clk
0:01:59.4]} 13. Kg1 {[%clk 0:01:57.5]} 13... Qb6 {[%clk 0:01:48.3]} 14. Be3
{[%clk 0:01:35.4]} 14... Nxe3 {[%clk 0:01:45.4]} 15. fxe3 {[%clk 0:01:36.3]}
15... Qxb2 {[%clk 0:01:13.6]} 16. Qd3 {[%clk 0:01:36.5]} 16... Qb6 {[%clk
0:01:09]} 17. Rab1 {[%clk 0:01:33.9]} 17... Qd8 {[%clk 0:00:58.7]} 18. Rf1
{[%clk 0:01:34.1]} 18... e6 {[%clk 0:00:45.9]} 19. Kh1 {[%clk 0:01:20.9]} 19...
Qc7 {[%clk 0:00:44.9]} 20. h3 {[%clk 0:01:20.1]} 20... Bd7 {[%clk 0:00:43.3]}
21. a5 {[%clk 0:01:16.5]} 21... Rac8 {[%clk 0:00:41]} 22. Nce2 {[%clk
0:01:13.1]} 22... e5 {[%clk 0:00:29.4]} 23. Nf3 {[%clk 0:01:08.4]} 23... Bb5
{[%clk 0:00:29.2]} 24. Qd2 {[%clk 0:00:56.1]} 24... Qxc2 {[%clk 0:00:29.1]} 25.
Rxb5 {[%clk 0:00:48]} 25... Qxd2 {[%clk 0:00:28.1]} 26. Nxd2 {[%clk 0:00:48.8]}
26... axb5 {[%clk 0:00:28.4]} 27. Nf3 {[%clk 0:00:40.4]} 27... Rc2 {[%clk
0:00:27]} 28. Nc1 {[%clk 0:00:39.1]} 28... Bh6 {[%clk 0:00:23.9]} 29. Nd3 {[%clk
0:00:32.4]} 29... Rc3 {[%clk 0:00:21.9]} 30. Nb4 {[%clk 0:00:31.2]} 30... Rc4
{[%clk 0:00:18.3]} 31. Nd5 {[%clk 0:00:29.8]} 31... Kh8 {[%clk 0:00:17.4]} 32.
Rb1 {[%clk 0:00:28.9]} 32... Rc5 {[%clk 0:00:16.9]} 33. Rd1 {[%clk 0:00:25.1]}
33... Ra8 {[%clk 0:00:16.5]} 34. Nf6 {[%clk 0:00:25.1]} 34... Bg7 {[%clk
0:00:10.1]} 35. Nd7 {[%clk 0:00:23.8]} 35... Rc6 {[%clk 0:00:10.3]} 36. Ra1
{[%clk 0:00:20.4]} 36... b4 {[%clk 0:00:10.6]} 37. Ra4 {[%clk 0:00:18.7]} 37...
b3 {[%clk 0:00:10.5]} 38. Rb4 {[%clk 0:00:19.5]} 38... Rxa5 {[%clk 0:00:09.6]}
39. Rxb3 {[%clk 0:00:19.6]} 39... b5 {[%clk 0:00:10]} 40. Nb6 {[%clk 0:00:18.8]}
40... Rxb6 {[%clk 0:00:09.2]} 41. Ng5 {[%clk 0:00:16.9]} 41... Bf6 {[%clk
0:00:08]} 42. Nxf7+ {[%clk 0:00:17.1]} 42... Kg7 {[%clk 0:00:08.7]} 43. Nxd6
{[%clk 0:00:16.5]} 43... Ra1+ {[%clk 0:00:08.7]} 44. Kh2 {[%clk 0:00:16.8]}
44... Rxd6 {[%clk 0:00:09.3]} 0-1